lending/lending_fUSD_20250819
["ID","MTS","AMOUNT","RATE_DAILY","PERIOD"]
[380271810,1755630770558,-1796.62,0.00024095,30]
[380271811,1755630770619,-2151.13,0.00024095,30]
[380271812,1755630770680,-431.94145631,0.00024095,30]
[380271813,1755630770742,-400.0,0.00024095,30]
[380271814,1755630770808,-400.0,0.00024095,30]
[380271815,1755630770873,-400.0,0.00024095,30]
[380271816,1755630770937,-1524.91,0.00024095,30]
[380271817,1755630771002,-400.0,0.00024095,30]
[380271818,1755630771072,-1268.61,0.00024095,30]
[380271819,1755630771141,-3537.65,0.00024095,30]
[380271820,1755630771207,-400.0,0.00024095,30]
[380271821,1755630771274,-632.78,0.00024095,30]
[380271822,1755630771340,-1091.34,0.00024095,30]
[380271823,1755630771406,-1777.71,0.00024095,30]
[380271824,1755630771466,-1517.91,0.00024095,30]
[380271825,1755630771526,-400.0,0.00024095,30]
[380271826,1755630771583,-449.25,0.00024095,30]
[380271827,1755630771642,-400.0,0.00024095,30]
[380271828,1755630771702,-603.15,0.00024095,30]
[380271829,1755630771761,-1999.87,0.00024095,30]
[380271830,1755630771989,-737.73,0.00024095,30]
[380271831,1755630772057,-759.41,0.00024095,30]
[380271832,1755630772123,-2399.17,0.00024095,30]
[380271833,1755630772189,-2887.56,0.00024095,30]
[380271834,1755630772255,-1092.33,0.00024095,30]
[380271835,1755630772320,-400.0,0.00024095,30]
[380271836,1755630772384,-1154.89,0.00024095,30]
[380271837,1755630772449,-400.0,0.00024095,30]
[380271838,1755630772514,-400.0,0.00024095,30]
[380271839,1755630772577,-540.17,0.00024095,30]
[380271840,1755630772642,-1604.08,0.00024095,30]
[380271841,1755630772707,-400.0,0.00024095,30]
[380271842,1755630772770,-862.64,0.00024095,30]
[380271843,1755630772832,-961.11,0.00024095,30]
[380271844,1755630772897,-558.64,0.00024095,30]
[380271845,1755630772961,-464.91,0.00024095,30]
[380271846,1755630773025,-400.0,0.00024095,30]
[380271847,1755630773094,-996.27,0.00024095,30]
[380271848,1755630773157,-400.0,0.00024095,30]
[380271849,1755630773221,-1174.54,0.00024095,30]
[380271850,1755630773285,-400.0,0.00024095,30]
[380271851,1755630773350,-400.0,0.00024095,30]
[380271852,1755630773414,-400.0,0.00024095,30]
[380271853,1755630773478,-529.25,0.00024095,30]
[380271854,1755630773539,-467.39,0.00024095,30]
[380271855,1755630773601,-1287.79,0.00024095,30]
[380271856,1755630773663,-410.72,0.00024095,30]
[380271857,1755630773728,-645.33,0.00024095,30]
[380271858,1755630773796,-400.0,0.00024095,30]
[380271859,1755630773860,-897.36,0.00024369,30]
[380271860,1755630773923,-1779.17,0.00024369,30]
[380271861,1755630773985,-257.02210249,0.00024369,30]
[380271862,1755630774055,-400.0,0.00024369,30]
[380271863,1755630774124,-400.0,0.00024369,30]
[380271864,1755630774190,-400.0,0.00024369,30]
[380271865,1755630774260,-922.03,0.00024369,30]
[380271866,1755630774330,-1077.73,0.00024369,30]
[380271867,1755630774397,-400.0,0.00024369,30]
[380271868,1755630774465,-424.48,0.00024369,30]
[380271869,1755630774530,-400.0,0.00024369,30]
[380271870,1755630774593,-573.46,0.00024369,30]
[380271871,1755630774656,-405.71,0.00024369,30]
[380271872,1755630774720,-1099.82,0.00024369,30]
[380271873,1755630774781,-1032.27,0.00024369,30]
[380271874,1755630774841,-405.59,0.00024369,30]
[380271875,1755630774902,-657.7,0.00024369,30]
[380271876,1755630774964,-2773.84,0.00024369,30]
[380271877,1755630775030,-2616.85,0.00024369,30]
[380271878,1755630775098,-569.65,0.00024369,30]
[380271879,1755630775166,-609.41,0.00024369,30]
[380271880,1755630775234,-523.45,0.00024369,30]
[380271881,1755630775304,-2291.88,0.00024369,30]
[380271882,1755630775372,-1113.47,0.00024369,30]
[380271883,1755630775437,-1609.3,0.00024369,30]
[380271884,1755630775501,-400.0,0.00024369,30]
[380271885,1755630775564,-503.96,0.00024369,30]
[380271886,1755630775625,-1375.63,0.00024369,30]
[380271887,1755630775688,-2391.62,0.00024369,30]
[380271888,1755630775752,-400.0,0.00024369,30]
[380271889,1755630775814,-567.71,0.00024369,30]
[380271890,1755630775876,-976.66,0.00024369,30]
[380271891,1755630775938,-444.55,0.00024369,30]
[380271892,1755630776001,-400.0,0.00024369,30]
[380271893,1755630776066,-1613.2,0.00024369,30]
[380271894,1755630776134,-655.88,0.00024369,30]
[380271895,1755630776200,-400.0,0.00024369,30]
[380271896,1755630776268,-1093.07,0.00024369,30]
[380271897,1755630776334,-1066.76,0.00024369,30]
[380271898,1755630776401,-750.6,0.00024369,30]
[380271899,1755630776465,-400.0,0.00024369,30]
[380271900,1755630776528,-400.0,0.00024369,30]
[380271901,1755630776588,-983.97,0.00024369,30]
[380271902,1755630776664,-1275.26,0.00024369,30]
[380271903,1755630776750,-475.91,0.00024369,30]
[380271904,1755630776820,-2197.7,0.00024369,30]
[380271905,1755630776883,-441.25,0.00024369,30]
[380271906,1755630776943,-400.0,0.00024369,30]
[380271907,1755630777003,-1698.15,0.00024369,30]
[380271908,1755630777066,-1243.9,0.00024369,30]
[380271909,1755630777130,-400.0,0.00024369,30]
[380271910,1755630777198,-400.0,0.00024369,30]
[380271911,1755630777268,-400.0,0.00024369,30]
[380271912,1755630777336,-514.92,0.00024369,30]
[380271913,1755630777409,-400.0,0.00024369,30]
[380271914,1755630777496,-1207.05,0.00024369,30]
[380271915,1755630777562,-400.0,0.00024369,30]
[380271916,1755630777627,-400.0,0.00024369,30]
[380271917,1755630777692,-400.0,0.00024369,30]
[380271918,1755630777759,-633.48,0.00024369,30]
[380271919,1755630777824,-680.06,0.00024369,30]
[380271920,1755630777890,-400.0,0.00024369,30]
[380271921,1755630777957,-523.52,0.00024369,30]
[380271922,1755630778023,-514.84,0.00024369,30]
[380271923,1755630778086,-765.55,0.00024369,30]
[380271924,1755630778151,-400.0,0.00024369,30]
[380271925,1755630778217,-435.85327415,0.00024369,30]
[380271926,1755630778283,-2380.79,0.00024369,30]
[380271927,1755630778354,-400.0,0.00024369,30]
[380271928,1755630778419,-2214.91,0.00024369,30]
[380271929,1755630778483,-400.0,0.00024369,30]
[380271930,1755630778545,-1455.64,0.00024369,30]
[380271931,1755630778609,-2318.11,0.00024369,30]
[380271932,1755630778678,-624.94,0.00024369,30]
[380271933,1755630778738,-475.29,0.00024369,30]
[380271934,1755630778798,-400.0,0.00024369,30]
[380271935,1755630778857,-480.84,0.00024369,30]
[380271936,1755630778913,-991.43,0.00024369,30]
[380271937,1755630778970,-457.25,0.00024369,30]
[380271938,1755630779029,-435.28,0.00024369,30]
[380271939,1755630779087,-600.44,0.00024369,30]
[380271940,1755630779148,-752.31,0.00024369,30]
[380271941,1755630779209,-840.02,0.00024369,30]
[380271942,1755630779268,-1691.99,0.00024369,30]
[380271943,1755630779331,-1037.15,0.00024369,30]
[380271944,1755630779391,-400.0,0.00024369,30]
[380271945,1755630779448,-1042.17,0.00024369,30]
[380271946,1755630779505,-933.24,0.00024369,30]
[380271947,1755630779860,-400.0,0.00024369,30]
[380271948,1755630779923,-774.29,0.00024369,30]
[380271949,1755630779984,-513.97,0.00024369,30]
[380271950,1755630780049,-400.0,0.00024369,30]
[380271951,1755630780120,-421.43,0.00024369,30]
[380271952,1755630780198,-1791.81,0.00024369,30]
[380271953,1755630780271,-2573.42,0.00024369,30]
[380271954,1755630780341,-674.85,0.00024369,30]
[380271955,1755630780409,-925.02,0.00024369,30]
[380271956,1755630780473,-2152.71,0.00024369,30]
[380271957,1755630780535,-400.0,0.00024369,30]
[380271958,1755630780597,-691.76,0.00024369,30]
[380271959,1755630780660,-1838.62,0.00024369,30]
[380271960,1755630780727,-400.0,0.00024369,30]
[380271961,1755630780785,-1032.92,0.00024369,30]
[380271962,1755630780843,-400.0,0.00024369,30]
[380271963,1755630780899,-400.0,0.00024369,30]
[380271964,1755630780958,-618.96,0.00024369,30]
[380271965,1755630781017,-400.0,0.00024369,30]
[380271966,1755630781078,-400.0,0.00024369,30]
[380271967,1755630781139,-400.0,0.00024369,30]
[380271968,1755630781202,-2177.09,0.00024369,30]
[380271969,1755630781265,-1491.89,0.00024369,30]
[380271970,1755630781328,-1445.88,0.00024369,30]
[380271971,1755630781390,-400.0,0.00024369,30]
[380271972,1755630781453,-400.0,0.00024369,30]
[380271973,1755630781514,-400.0,0.00024369,30]
[380271974,1755630781574,-1457.27,0.00024369,30]
[380271975,1755630781639,-521.21,0.00024369,30]
[380271976,1755630781699,-808.44,0.00024369,30]
[380271977,1755630781761,-575.21,0.00024369,30]
[380271978,1755630781824,-400.0,0.00024369,30]
[380271979,1755630781892,-400.0,0.00024369,30]
[380271980,1755630781956,-400.0,0.00024369,30]
[380271981,1755630782021,-741.66,0.00024369,30]
[380271982,1755630782086,-400.0,0.00024369,30]
[380271983,1755630782152,-1259.81,0.00024369,30]
[380271984,1755630782216,-400.0,0.00024369,30]
[380271985,1755630782283,-400.0,0.00024369,30]
[380271986,1755630782346,-520.65,0.00024369,30]
[380271987,1755630782410,-1250.58,0.00024369,30]
[380271988,1755630782469,-759.93,0.00024369,30]
[380271989,1755630782526,-400.0,0.00024369,30]
[380271990,1755630782583,-400.0,0.00024369,30]
[380271991,1755630782641,-400.0,0.00024369,30]
[380271992,1755630782698,-969.64,0.00024369,30]
[380271993,1755630782756,-1990.94,0.00024369,30]
[380271994,1755630782815,-1275.47,0.00024369,30]
[380271995,1755630782869,-400.0,0.00024369,30]
[380271996,1755630782925,-400.0,0.00024369,30]
[380271997,1755630782985,-400.0,0.00024369,30]
[380271998,1755630783051,-1171.85,0.00024369,30]
[380271999,1755630783120,-400.0,0.00024369,30]
[380272000,1755630783187,-400.0,0.00024369,30]
[380272001,1755630783257,-1032.99,0.00024369,30]
[380272002,1755630783325,-1115.27,0.00024369,30]
[380272003,1755630783396,-2003.39,0.00024369,30]
[380272004,1755630783466,-400.0,0.00024369,30]
[380272005,1755630783534,-400.0,0.00024369,30]
[380272006,1755630783602,-400.0,0.00024369,30]
[380272007,1755630783669,-400.0,0.00024369,30]
[380272008,1755630783741,-1093.1,0.00024369,30]
[380272009,1755630783812,-727.99,0.00024369,30]
[380272010,1755630783888,-1683.21,0.00024369,30]
[380272011,1755630783956,-690.52,0.00024369,30]
[380272012,1755630784027,-721.89,0.00024369,30]
[380272013,1755630784099,-400.0,0.00024369,30]
[380272014,1755630784171,-1864.55,0.00024369,30]
[380272015,1755630784241,-400.0,0.00024369,30]
[380272016,1755630784312,-933.6,0.00024369,30]
[380272017,1755630784383,-1540.32,0.00024369,30]
[380272018,1755630784452,-400.0,0.00024369,30]
[380272019,1755630784519,-667.4,0.00024369,30]
[380272020,1755630784590,-1549.09,0.00024369,30]
[380272021,1755630784659,-400.0,0.00024369,30]
[380272022,1755630784731,-1945.59,0.00024369,30]
[380272023,1755630784799,-400.0,0.00024369,30]
[380272024,1755630784867,-447.13,0.00024369,30]
[380272025,1755630784933,-400.0,0.00024369,30]
[380272026,1755630784999,-400.0,0.00024369,30]
[380272027,1755630785069,-834.9,0.00024369,30]
[380272028,1755630785137,-1543.97,0.00024369,30]
[380272029,1755630785204,-2463.0,0.00024369,30]
[380272030,1755630785273,-400.0,0.00024369,30]
[380272031,1755630785341,-2651.29,0.00024369,30]
[380272032,1755630785409,-1180.21,0.00024369,30]
[380272033,1755630785475,-400.0,0.00024369,30]
[380272034,1755630785540,-2251.53,0.00024369,30]
[380272035,1755630785602,-400.0,0.00024369,30]
[380272036,1755630785667,-632.7,0.00024369,30]
[380272037,1755630785735,-1354.08,0.00024369,30]
[380272038,1755630785800,-476.92,0.00024369,30]
[380272039,1755630785865,-400.0,0.00024369,30]
[380272040,1755630785929,-1498.84,0.00024369,30]
[380272041,1755630786399,-400.0,0.00024369,30]
[380272042,1755630786464,-1067.22,0.00024369,30]
[380272043,1755630786531,-1077.46,0.00024369,30]
[380272044,1755630786594,-893.12,0.00024369,30]
[380272045,1755630786659,-400.0,0.00024369,30]
[380272046,1755630786726,-400.0,0.00024369,30]
[380272047,1755630786788,-994.07,0.00024369,30]
[380272048,1755630786850,-555.34,0.00024369,30]
[380272049,1755630786912,-400.0,0.00024369,30]
[380272050,1755630786975,-919.17,0.00024369,30]
[380272051,1755630787041,-1190.15,0.00024369,30]
[380272052,1755630787107,-400.0,0.00024369,30]
[380272053,1755630787176,-420.00181516,0.00024369,30]
[380272054,1755630787248,-400.0,0.00024369,30]
[380272055,1755630787317,-1711.77,0.00024369,30]
[380272056,1755630787390,-624.5,0.00024369,30]
[380272057,1755630787454,-1019.51,0.00024369,30]
[380272058,1755630787519,-400.0,0.00024369,30]
[380272059,1755630787581,-400.0,0.00024369,30]
[380272060,1755630787641,-477.1,0.00024369,30]
[380272061,1755630787703,-1145.45,0.00024369,30]
[380272062,1755630787772,-1865.24,0.00024369,30]
[380272063,1755630787839,-947.97,0.00024369,30]
[380272064,1755630787905,-503.59,0.00024369,30]
[380272065,1755630787971,-400.0,0.00024369,30]
[380272066,1755630788033,-851.26,0.00024369,30]
[380272067,1755630788098,-400.0,0.00024369,30]
[380272068,1755630788164,-400.0,0.00024369,30]
[380272069,1755630788232,-437.88,0.00024369,30]
[380272070,1755630788298,-1607.24,0.00024369,30]
[380272071,1755630788364,-400.0,0.00024369,30]
[380272072,1755630788428,-400.0,0.00024369,30]
[380272073,1755630788491,-482.8,0.00024369,30]
[380272074,1755630788551,-400.0,0.00024369,30]
[380272075,1755630788608,-1765.89,0.00024369,30]
[380272076,1755630788666,-1008.25,0.00024369,30]
[380272077,1755630788728,-400.0,0.00024369,30]
[380272078,1755630788786,-556.2,0.00024369,30]
[380272079,1755630788848,-400.0,0.00024369,30]
[380272080,1755630788907,-411.04,0.00024369,30]
[380272081,1755630788967,-438.9,0.00024369,30]
[380272082,1755630789026,-400.0,0.00024369,30]
[380272083,1755630789089,-400.0,0.00024369,30]
[380272084,1755630789151,-2238.16,0.00024369,30]
[380272085,1755630789215,-400.0,0.00024369,30]
[380272086,1755630789277,-400.0,0.00024369,30]
[380272087,1755630789340,-584.89,0.00024369,30]
[380272088,1755630789403,-400.0,0.00024369,30]
[380272089,1755630789465,-605.66,0.00024369,30]
[380272090,1755630789531,-698.53,0.00024369,30]
[380272091,1755630789598,-400.0,0.00024369,30]
[380272092,1755630789666,-400.0,0.00024369,30]
[380272093,1755630789733,-400.0,0.00024369,30]
[380272094,1755630789794,-461.41,0.00024369,30]
[380272095,1755630789856,-1632.1,0.00024369,30]
[380272096,1755630789920,-579.14,0.00024369,30]
[380272097,1755630789987,-400.0,0.00024369,30]
[380272098,1755630790050,-1023.1,0.00024369,30]
[380272099,1755630790114,-2074.73,0.00024369,30]
[380272100,1755630790181,-596.89,0.00024369,30]
[380272101,1755630790249,-400.0,0.00024369,30]
[380272102,1755630790316,-400.0,0.00024369,30]
[380272103,1755630790396,-400.0,0.00024369,30]
[380272104,1755630790461,-400.0,0.00024369,30]
[380272105,1755630790524,-400.0,0.00024369,30]
[380272106,1755630790586,-773.53,0.00024369,30]
[380272107,1755630790652,-1825.28,0.00024369,30]
[380272108,1755630790715,-1523.06,0.00024369,30]
[380272109,1755630790777,-400.0,0.00024369,30]
[380272110,1755630790838,-2716.46,0.00024369,30]
[380272111,1755630790902,-400.0,0.00024369,30]
[380272112,1755630790966,-400.0,0.00024369,30]
[380272113,1755630791029,-408.97,0.00024369,30]
[380272114,1755630791092,-1571.86,0.00024369,30]
[380272115,1755630791162,-400.0,0.00024369,30]
[380272116,1755630791228,-403.44,0.00024369,30]
[380272117,1755630791293,-400.0,0.00024369,30]
[380272118,1755630791501,-400.0,0.00024369,30]
[380272119,1755630791565,-2094.77,0.00024369,30]
[380272120,1755630791628,-400.0,0.00024369,30]
[380272121,1755630791690,-400.0,0.00024369,30]
[380272122,1755630791748,-445.03,0.00024369,30]
[380272123,1755630791808,-410.03,0.00024369,30]
[380272124,1755630791865,-400.0,0.00024369,30]
[380272125,1755630791923,-1358.16,0.00024369,30]
[380272126,1755630791985,-2348.69,0.00024369,30]
[380272127,1755630792049,-1179.36,0.00024369,30]
[380272128,1755630792112,-506.52,0.00024369,30]
[380272129,1755630792184,-400.0,0.00024369,30]
[380272130,1755630792248,-1821.21,0.00024369,30]
[380272131,1755630792311,-657.8,0.00024369,30]
[380272132,1755630792377,-400.0,0.00024369,30]
[380272133,1755630792440,-590.84,0.00024369,30]
[380272134,1755630792502,-912.76,0.00024369,30]
[380272135,1755630792565,-400.0,0.00024369,30]
[380272136,1755630792628,-1223.73,0.00024369,30]
[380272137,1755630792692,-400.0,0.00024369,30]
[380272138,1755630792758,-382.1784572,0.00024369,30]
[380272139,1755630792822,-1766.94,0.00024369,30]
[380272140,1755630792888,-2098.13,0.00024369,30]
[380272141,1755630792969,-400.0,0.00024369,30]
[380272142,1755630793037,-964.55,0.00024369,30]
[380272143,1755630793106,-907.48,0.00024369,30]
[380272144,1755630793176,-400.0,0.00024369,30]
[380272145,1755630793247,-1038.22,0.00024369,30]
[380272146,1755630793316,-400.0,0.00024369,30]
[380272147,1755630793387,-500.04,0.00024369,30]
[380272148,1755630793455,-400.0,0.00024369,30]
[380272149,1755630793523,-3192.48,0.00024369,30]
[380272150,1755630793590,-2133.63,0.00024369,30]
[380272151,1755630793653,-1673.85,0.00024369,30]
[380272152,1755630793719,-406.02,0.00024369,30]
[380272153,1755630793782,-3254.26,0.00024369,30]
[380272154,1755630793843,-400.0,0.00024369,30]
[380272155,1755630793901,-960.18,0.00024369,30]
[380272156,1755630793961,-594.4,0.00024369,30]
[380272157,1755630794021,-1003.4,0.00024369,30]
[380272158,1755630794088,-416.9,0.00024369,30]
[380272159,1755630794157,-479.67,0.00024369,30]
[380272160,1755630794225,-2104.94,0.00024369,30]
[380272161,1755630794296,-1658.41,0.00024369,30]
[380272162,1755630794363,-400.0,0.00024369,30]
[380272163,1755630794430,-672.86,0.00024369,30]
[380272164,1755630794500,-400.0,0.00024369,30]
[380272165,1755630794566,-400.0,0.00024369,30]
[380272166,1755630794637,-1715.1,0.00024369,30]
[380272167,1755630794703,-400.0,0.00024369,30]
[380272168,1755630794770,-400.0,0.00024369,30]
[380272169,1755630794835,-775.68,0.00024369,30]
[380272170,1755630794901,-933.05,0.00024369,30]
[380272171,1755630794972,-503.65,0.00024369,30]
[380272172,1755630795047,-930.59,0.00024369,30]
[380272173,1755630795118,-400.0,0.00024369,30]
[380272174,1755630795194,-400.0,0.00024369,30]
[380272175,1755630795265,-1249.51,0.00024369,30]
[380272176,1755630795335,-400.0,0.00024369,30]
[380272177,1755630795405,-2775.35,0.00024369,30]
[380272178,1755630795471,-976.92,0.00024369,30]
[380272179,1755630795537,-400.0,0.00024369,30]
[380272180,1755630795606,-557.23,0.00024369,30]
[380272181,1755630795674,-668.31,0.00024369,30]
[380272182,1755630795748,-745.22,0.00024369,30]
[380272183,1755630795817,-503.04,0.00024369,30]
[380272184,1755630795887,-804.51,0.00024369,30]
[380272185,1755630795952,-400.0,0.00024369,30]
[380272186,1755630796019,-400.0,0.00024369,30]
[380272187,1755630796087,-400.0,0.00024369,30]
[380272188,1755630796154,-466.38,0.00024369,30]
[380272189,1755630796220,-1250.28,0.00024369,30]
[380272190,1755630796287,-2981.31,0.00024369,30]
[380272191,1755630796354,-1112.61,0.00024369,30]
[380272192,1755630796429,-866.17,0.00024369,30]
[380272193,1755630796496,-1994.95,0.00024369,30]
[380272194,1755630796561,-400.0,0.00024369,30]
[380272195,1755630796627,-664.23,0.00024369,30]
[380272196,1755630796690,-400.0,0.00024369,30]
[380272197,1755630796758,-410.99,0.00024369,30]
[380272198,1755630796824,-400.0,0.00024369,30]
[380272199,1755630796894,-2158.15,0.00024369,30]
[380272200,1755630796958,-481.8,0.00024369,30]
[380272201,1755630797022,-509.99,0.00024369,30]
[380272202,1755630797088,-400.0,0.00024369,30]
[380272203,1755630797160,-400.0,0.00024369,30]
[380272204,1755630797225,-1750.63,0.00024369,30]
[380272205,1755630797293,-1813.31,0.00024369,30]
[380272206,1755630797364,-400.0,0.00024369,30]
[380272207,1755630797431,-187.17572993,0.00024369,30]
[380272208,1755630797499,-400.0,0.00024369,30]
[380272209,1755630797560,-400.0,0.00024369,30]
[380272210,1755630797622,-467.36,0.00024369,30]
[380272211,1755630797684,-400.0,0.00024369,30]
[380272212,1755630797749,-413.19,0.00024369,30]
[380272213,1755630797815,-400.0,0.00024369,30]
[380272214,1755630797879,-855.55,0.00024369,30]
[380272215,1755630797941,-400.0,0.00024369,30]
[380272216,1755630798006,-601.39,0.00024369,30]
[380272217,1755630798073,-400.0,0.00024369,30]
[380272218,1755630798142,-2280.39,0.00024369,30]
[380272219,1755630798211,-2862.7,0.00024369,30]
[380272220,1755630798275,-1314.81,0.00024369,30]
[380272221,1755630798346,-400.0,0.00024369,30]
[380272222,1755630798417,-975.51,0.00024369,30]
[380272223,1755630798487,-400.0,0.00024369,30]
[380272224,1755630798552,-400.0,0.00024369,30]
[380272225,1755630798618,-2207.52,0.00024369,30]
[380272226,1755630798691,-1840.1,0.00024369,30]
[380272227,1755630798758,-2643.18,0.00024369,30]
[380272228,1755630798825,-400.0,0.00024369,30]
[380272229,1755630798891,-1472.7,0.00024369,30]
[380272230,1755630798960,-517.95,0.00024369,30]
[380272231,1755630799028,-400.0,0.00024369,30]
[380272232,1755630799101,-307.11647227,0.00024369,30]
[380272233,1755630799172,-1486.54,0.00024369,30]
[380272234,1755630799243,-2077.7,0.00024369,30]
[380272235,1755630799594,-400.0,0.00024369,30]
[380272236,1755630799660,-258.63024241,0.00024369,30]
[380272237,1755630799730,-3186.14,0.00024369,30]
[380272238,1755630799794,-2093.14,0.00024369,30]
[380272239,1755630799857,-400.0,0.00024369,30]
[380272240,1755630799920,-3535.78,0.00024369,30]
[380272241,1755630799984,-790.95,0.00024369,30]
[380272242,1755630800051,-2875.96,0.00024369,30]
[380272243,1755630800120,-593.85,0.00024369,30]
[380272244,1755630800190,-1801.97,0.00024369,30]
[380272245,1755630800261,-691.08,0.00024369,30]
[380272246,1755630800330,-400.0,0.00024369,30]
[380272247,1755630800401,-962.38,0.00024369,30]
[380272248,1755630800470,-1485.42,0.00024369,30]
[380272249,1755630800534,-400.0,0.00024369,30]
[380272250,1755630800598,-400.0,0.00024369,30]
[380272251,1755630800660,-1374.41,0.00024369,30]
[380272252,1755630800727,-400.0,0.00024369,30]
[380272253,1755630800787,-642.48,0.00024369,30]
[380272254,1755630800845,-400.0,0.00024369,30]
[380272255,1755630800903,-2227.75,0.00024369,30]
[380272256,1755630800963,-400.0,0.00024369,30]
[380272257,1755630801021,-400.0,0.00024369,30]
[380272258,1755630801085,-1008.89,0.00024369,30]
[380272259,1755630801147,-935.31,0.00024369,30]
[380272260,1755630801211,-400.0,0.00024369,30]
[380272261,1755630801278,-734.31,0.00024369,30]
[380272262,1755630801346,-760.31,0.00024369,30]
[380272263,1755630801414,-543.43,0.00024369,30]
[380272264,1755630801480,-400.0,0.00024369,30]
[380272265,1755630801545,-588.82,0.00024369,30]
[380272266,1755630801610,-498.35,0.00024369,30]
[380272267,1755630801677,-400.0,0.00024369,30]
[380272268,1755630801747,-1235.39,0.00024369,30]
[380272269,1755630801816,-1209.49,0.00024369,30]
[380272270,1755630801884,-400.0,0.00024369,30]
[380272271,1755630801953,-400.0,0.00024369,30]
[380272272,1755630802021,-1853.54,0.00024369,30]
[380272273,1755630802091,-818.2,0.00024369,30]
[380272274,1755630802158,-1158.12,0.00024369,30]
[380272275,1755630802226,-845.97,0.00024369,30]
[380272276,1755630802294,-1453.42,0.00024369,30]
[380272277,1755630802362,-1268.36,0.00024369,30]
[380272278,1755630802429,-400.0,0.00024369,30]
[380272279,1755630802497,-1608.12,0.00024369,30]
[380272280,1755630802563,-838.71,0.00024369,30]
[380272281,1755630802630,-2072.48,0.00024369,30]
[380272282,1755630802695,-400.0,0.00024369,30]
[380272283,1755630802762,-2234.05,0.00024369,30]
[380272284,1755630802829,-553.19,0.00024369,30]
[380272285,1755630802898,-400.0,0.00024369,30]
[380272286,1755630802963,-2377.86,0.00024369,30]
[380272287,1755630803030,-656.71,0.00024369,30]
[380272288,1755630803098,-491.09,0.00024369,30]
[380272289,1755630803165,-1003.6,0.00024369,30]
[380272290,1755630803233,-575.64,0.00024369,30]
[380272291,1755630803301,-890.27,0.00024369,30]
[380272292,1755630803369,-2729.75,0.00024369,30]
[380272293,1755630803437,-400.0,0.00024369,30]
[380272294,1755630803506,-400.0,0.00024369,30]
[380272295,1755630803571,-400.0,0.00024369,30]
[380272296,1755630803637,-887.1,0.00024369,30]
[380272297,1755630803704,-1586.0,0.00024369,30]
[380272298,1755630803777,-400.0,0.00024369,30]
[380272299,1755630803842,-400.0,0.00024369,30]
[380272300,1755630803919,-400.0,0.00024369,30]
[380272301,1755630803982,-468.86,0.00024369,30]
[380272302,1755630804048,-1550.01,0.00024369,30]
[380272303,1755630804116,-2791.41,0.00024369,30]
[380272304,1755630804183,-665.78,0.00024369,30]
[380272305,1755630804250,-400.0,0.00024369,30]
[380272306,1755630804316,-1245.26,0.00024369,30]
[380272307,1755630804382,-1677.64,0.00024369,30]
[380272308,1755630804447,-3451.63,0.00024369,30]
[380272309,1755630804513,-1005.04,0.00024369,30]